[Event "55th Biel Festival MTO 2022"]
[Site "Biel"]
[Date "2022.07.19"]
[Round "6.3"]
[White "Fedoseev Vladimir"]
[Black "Iturrizaga Bonelli Eduardo"]
[Result "1/2-1/2"]
[ECO "E17"]
[WhiteElo "2686"]
[BlackElo "2619"]
[Annotator "TA"]
[PlyCount "113"]
[EventDate "2022.07.13"]
[EventType "swiss"]
[EventCountry "SUI"]
[SourceTitle "playchess.com"]
[Source "ChessBase"]
[SourceQuality "1"]
[TimeControl "40/5400+30:1800+30"]

{[%evp 11,113,21,11,8,10,18,17,9,12,11,31,27,16,14,18,0,78,47,49,56,60,63,66,60,48,54,53,52,78,26,33,32,114,28,20,41,35,20,29,19,54,0,0,0,0,0,0,0,6,0,8,0,0,0,0,0,3,0,7,0,0,0,0,0,3,0,0,0,0,0,0,0,0,0,0,0,0,0,0,4,4,8,12,6,6,6,8,7,14,9,14,0,33,0,0,0,0,-26,-28,-30,0,0,0,0]} 1. d4 {[%emt 0:00:03]} Nf6 {[%emt 0:07:04]} 2. c4 {[%emt 0:00:08]} e6 {[%emt 0:00:07]} 3. Nf3 {[%emt 0:00:07]} b6 {[%emt 0:00:27]} 4. g3 {[%emt 0:00:10]} Bb7 {[%emt 0:00:06]} 5. Bg2 {[%emt 0:00:10]} Be7 {[%emt 0:00:04]} 6. O-O {[%emt 0:00:13]} O-O {[%emt 0:00:04]} 7. h4 {[%emt 0:00:11] [#] E17: Queen's Indian: 4 g3 Bb7 5 Bg2 Be7.} h6 $146 {[%emt 0:10:42]} ({Predecessor:} 7... Na6 8. Nc3 Ne4 9. Nxe4 Bxe4 10. Ng5 Bxg2 11. Kxg2 h6 12. Nh3 d5 13. Qa4 Qc8 14. cxd5 exd5 {½-½ (88) Sargissian,G (2681)-Sanal,V (2601) Warsaw 2021}) 8. Nc3 {[%emt 0:00:25]} Ne4 {[%emt 0:03:37]} 9. d5 {[%emt 0:00:30]} Nxc3 {[%emt 0:04:11]} 10. bxc3 {[%emt 0:00:00]} Na6 {[%emt 0:14:17]} 11. Nd4 {[%emt 0:00:00][%cal Od5d6]} Nc5 {[%emt 0:03:52]} 12. e4 {[%emt 0:01:58][%cal Be2e4,Be4e5][%mdl 32]} Ba6 {[%emt 0:08:59]} 13. Qe2 {[%emt 0:25:38]} Re8 {[%emt 0:00:30]} (13... exd5 $11 14. exd5 Bd6) 14. e5 {[%emt 0:02:41] White is more active.} exd5 {[%emt 0:00:30]} 15. Nf5 $1 {[%emt 0:00:30]} Bf6 {[%emt 0:00:30] [#]} 16. Nxh6+ $1 {[%emt 0:00:30]} gxh6 {[%emt 0:06:24]} 17. Qg4+ {[%emt 0:00:10]} Kh8 $1 {[%emt 0:02:23]} 18. exf6 {[%emt 0:00:29]} Qxf6 {[%emt 0:00:04]} 19. Be3 {[%emt 0:02:07]} Kh7 {[%emt 0:02:16] [#]} (19... Bxc4 $2 20. Bd4 Re5 21. f4 $18) 20. Bxd5 {[%emt 0:01:47]} ({White should try} 20. Bd4 $1 $16 {[%cal Rd4f6]} Qg6 21. Qf3 (21. Qxg6+ fxg6 22. Bxc5 bxc5 $15) 21... Bxc4 22. h5) 20... c6 $11 {[%emt 0:00:09]} 21. Bg2 {[%emt 0:00:44]} d5 {[%emt 0:00:41]} (21... Qg6 $14 22. Qf4 Ne6) 22. cxd5 {[%emt 0:01:26]} ({White should play} 22. Bd4 $16 Qg6 23. Qf3 (23. Qxg6+ fxg6 24. Bxc5 bxc5 $11)) 22... Bxf1 {[%emt 0:00:07]} 23. Rxf1 {[%emt 0:00:07] Strongly threatening Bd4.} cxd5 {[%emt 0:00:22]} 24. Bxd5 {[%emt 0:00:14] This bishop pair is nice.} Rad8 {[%emt 0:00:46]} 25. c4 {[%emt 0:05:57][%cal Oa2a4]} Re7 {[%emt 0:08:09]} 26. Qh3 {[%emt 0:09:17]} (26. Bd4 $1 $14 Qg6 27. Qf4) 26... Rg8 {[%emt 0:05:10]} 27. Bg5 {[%emt 0:02:10]} Rxg5 {[%emt 0:00:07]} 28. hxg5 {[%emt 0:01:01]} Qxg5 {[%emt 0:00:05]} 29. Rd1 {[%emt 0:00:17]} Ne4 $132 {[%emt 0:01:12][%cal Oe4f2][%mdl 2048] Threatens to win with ...Nxf2! Black is not keeping still} 30. Qf1 {[%emt 0:06:01]} Kg7 {[%emt 0:06:59]} 31. Qd3 {[%emt 0:01:22]} Nf6 {[%emt 0:00:20]} 32. Qa3 {[%emt 0:03:22]} Qe5 {[%emt 0:03:04]} 33. Kg2 {[%emt 0:02:14]} Rd7 {[%emt 0:00:28]} 34. Qb3 {[%emt 0:02:41]} Rd6 {[%emt 0:01:55]} 35. a4 {[%emt 0:02:04]} Rd7 {[%emt 0:05:35]} 36. Qb5 {[%emt 0:03:54]} Rc7 {[%emt 0:01:30]} 37. Qb3 {[%emt 0:03:51]} Rd7 {[%emt 0:00:05]} 38. Qf3 {[%emt 0:01:31]} Re7 {[%emt 0:03:25]} 39. Rh1 {[%emt 0:03:12]} Rd7 {[%emt 0:03:07]} 40. Rh4 {[%emt 0:00:34]} a5 {[%emt 0:00:34]} 41. Qd1 {[%emt 0:35:32]} Rd6 {[%emt 0:01:29][%cal Rf6d5]} 42. Rd4 {[%emt 0:00:00]} Rd7 {[%emt 0:01:42]} 43. Rd3 {[%emt 0:00:00]} Nxd5 {[%emt 0:02:52]} 44. cxd5 {[%emt 0:00:00][%mdl 4096] Endgame Hoping for Qg4+. KQR-KQR} Rd6 {[%emt 0:00:09]} 45. Qg4+ {[%emt 0:00:00]} Rg6 {[%emt 0:02:03]} (45... Kf8 {is interesting.} 46. Rd4 h5 47. Qd1 Qf5) 46. Qc4 {[%emt 0:00:00]} Rd6 {[%emt 0:00:17]} 47. Rd4 {[%emt 0:00:00]} h5 {[%emt 0:00:14]} 48. Qd3 {[%emt 0:00:00]} Kf8 {[%emt 0:01:00]} 49. Kf1 {[%emt 0:00:00]} Kg7 {[%emt 0:00:11]} 50. f4 {[%emt 0:00:00]} Qf6 {[%emt 0:00:16]} 51. Kg2 {[%emt 0:00:00]} Kf8 {[%emt 0:01:31]} 52. Re4 {[%emt 0:00:00]} Qb2+ {[%emt 0:00:25]} 53. Kf3 {[%emt 0:00:00]} Qa1 {[%emt 0:03:04]} 54. Qd4 {[%emt 0:00:00]} Qf1+ {[%emt 0:00:42]} 55. Ke3 {[%emt 0:00:00][%cal Rd4h8]} Qe1+ {[%emt 0:00:11]} 56. Kd3 {[%emt 0:00:00][%cal Rd4h8] Chess con chili.} Qd1+ {[%emt 0:00:59]} 57. Ke3 {[%emt 0:00:00] Weighted Error Value: White=0.08 (flawless) /Black=0.10 (very precise)} 1/2-1/2

[Event "55th Biel Festival MTO 2022"]
[Site "Biel"]
[Date "2022.07.19"]
[Round "6.4"]
[White "Sargsyan Shant"]
[Black "Ganguly Surya Shekhar"]
[Result "1/2-1/2"]
[ECO "E51"]
[WhiteElo "2661"]
[BlackElo "2608"]
[Annotator "TA"]
[PlyCount "88"]
[EventDate "2022.07.13"]
[EventType "swiss"]
[EventCountry "SUI"]
[SourceTitle "playchess.com"]
[Source "ChessBase"]
[SourceQuality "1"]
[TimeControl "40/5400+30:1800+30"]

{[%evp 13,88,1,12,13,8,10,0,0,0,0,16,16,7,8,15,0,0,0,0,0,0,0,0,0,0,0,31,0,0,0,0,0,0,0,0,0,0,0,0,0,8,0,12,8,8,8,8,0,8,0,0,0,0,0,0,0,0,0,0,0,0,0,0,0,0,0,0,0,0,0,8,0,0,0,8,0,0]} 1. d4 {[%emt 0:01:15]} Nf6 {[%emt 0:00:08]} 2. c4 {[%emt 0:00:13]} e6 {[%emt 0:00:07]} 3. Nc3 {[%emt 0:00:13]} Bb4 {[%emt 0:00:08]} 4. e3 {[%emt 0:00:12]} O-O {[%emt 0:00:23]} 5. Bd2 {[%emt 0:00:08]} d5 {[%emt 0:00:27]} 6. Nf3 {[%emt 0:00:15]} b6 {[%emt 0:00:08]} 7. cxd5 {[%emt 0:00:10]} exd5 {[%emt 0:00:06]} 8. Rc1 {[%emt 0:00:05] E51: Nimzo-Indian: Rubinstein: 4...0-0 5 Nf3 d5.} Be7 {[%emt 0:00:35]} 9. Bd3 {[%emt 0:00:51]} Bb7 {[%emt 0:00:07]} 10. O-O {[%emt 0:00:36]} c5 {[%emt 0:00:03]} 11. Re1 {[%emt 0:01:19]} Re8 {[%emt 0:03:21]} 12. dxc5 {[%emt 0:01:22]} bxc5 {[%emt 0:02:53]} 13. Qb3 {[%emt 0:00:19]} Qb6 {[%emt 0:00:27] [#]} 14. e4 $146 {[%emt 0:01:19][%cal Re4d5]} ({Predecessor:} 14. Na4 Qxb3 15. axb3 Ba6 16. Bf1 Bxf1 17. Kxf1 Na6 18. Bc3 Reb8 19. Red1 Rxb3 20. Bxf6 Bxf6 21. Rxd5 {½-½ (39) Mladek,R (2361)-Sankalp,G (2505) Prague 2022}) 14... Qxb3 {[%emt 0:06:07]} 15. axb3 {[%emt 0:00:00]} dxe4 {[%emt 0:00:00]} 16. Nxe4 {[%emt 0:00:13]} (16. Bb5 {keeps more tension.} Nbd7 17. Ng5 a6 18. Bc4) 16... Nxe4 {[%emt 0:00:09]} 17. Bxe4 {[%emt 0:00:30]} Bxe4 {[%emt 0:00:30]} 18. Rxe4 {[%emt 0:00:30]} Nc6 {[%emt 0:00:30]} 19. Be3 {[%emt 0:00:30]} Rab8 {[%emt 0:07:36]} 20. Bxc5 {[%emt 0:10:27]} Bxc5 {[%emt 0:01:25] The position is equal.} 21. Rxe8+ {[%emt 0:00:11]} Rxe8 {[%emt 0:00:05]} 22. Rxc5 $14 {[%emt 0:00:07][%mdl 4096] Endgame KRN-KRN} Nd4 {[%emt 0:00:08]} 23. b4 {[%emt 0:09:57]} Nxf3+ {[%emt 0:02:48]} 24. gxf3 $11 {[%emt 0:04:04] KR-KR} g6 {[%emt 0:04:42]} 25. Ra5 {[%emt 0:04:10]} Re7 {[%emt 0:08:29]} 26. Kg2 {[%emt 0:00:30]} Kg7 {[%emt 0:00:30]} 27. Kg3 {[%emt 0:00:30]} Kf6 {[%emt 0:00:30]} 28. h4 {[%emt 0:00:30]} h5 {[%emt 0:00:30]} 29. b5 {[%emt 0:00:30]} Rd7 {[%emt 0:00:30]} 30. b4 {[%emt 0:00:30]} Rc7 {[%emt 0:08:03]} 31. f4 {[%emt 0:03:09]} Rc3+ {[%emt 0:04:38]} 32. f3 {[%emt 0:00:10] [#] And now Ra6+ would win.} Rc7 {[%emt 0:01:01]} 33. Ra6+ {[%emt 0:02:09]} Kf5 {[%emt 0:00:15]} 34. Rc6 {[%emt 0:10:39]} Rd7 {[%emt 0:00:21]} 35. Rc5+ {[%emt 0:00:31]} Kf6 {[%emt 0:00:08]} 36. Rc6+ {[%emt 0:02:57]} Kf5 {[%emt 0:03:32]} 37. b6 {[%emt 0:00:13]} axb6 {[%emt 0:00:08]} 38. Rxb6 {[%emt 0:00:02]} Rd4 {[%emt 0:00:58]} 39. Rb7 {[%emt 0:01:17]} Kf6 {[%emt 0:01:37]} 40. b5 {[%emt 0:00:16]} Rb4 {[%emt 0:00:11]} 41. b6 {[%emt 0:30:26]} Rb2 {[%emt 0:30:55]} 42. Rb8 {[%emt 0:00:30]} Rb4 {[%emt 0:00:14]} 43. Rb7 {[%emt 0:00:11]} Rb2 {[%emt 0:00:05]} 44. Rb8 {[%emt 0:00:06]} Rb4 {[%emt 0:00:04] An even fight not without its subleties.  Weighted Error Value: White=0.03 (flawless) /Black=0.03 (flawless)} 1/2-1/2

[Event "55th Biel Festival MTO 2022"]
[Site "Biel"]
[Date "2022.07.19"]
[Round "6.5"]
[White "Motylev Alexander"]
[Black "Huschenbeth Niclas"]
[Result "1-0"]
[ECO "D35"]
[WhiteElo "2632"]
[BlackElo "2610"]
[Annotator "TA"]
[PlyCount "53"]
[EventDate "2022.07.13"]
[EventType "swiss"]
[EventCountry "SUI"]
[SourceTitle "playchess.com"]
[Source "ChessBase"]
[SourceQuality "1"]
[TimeControl "40/5400+30:1800+30"]

{[%evp 12,53,23,25,43,32,55,24,28,30,39,17,30,31,41,47,44,42,49,19,14,29,62,50,77,88,154,59,58,61,65,73,65,74,1017,957,1489,1449,1452,1333,1282,1282,1132,1118]} 1. d4 {[%emt 0:00:07]} Nf6 {[%emt 0:00:36]} 2. c4 {[%emt 0:00:10]} e6 {[%emt 0:00:05]} 3. Nc3 {[%emt 0:00:13]} d5 {[%emt 0:06:31]} 4. cxd5 {[%emt 0:02:56]} exd5 {[%emt 0:00:14]} 5. Bg5 {[%emt 0:13:28][%cal Bc1g5,Bg5h4,Bh4g3][%mdl 32]} Bb4 {[%emt 0:00:11]} 6. e3 {[%emt 0:00:30]} h6 {[%emt 0:00:05]} 7. Bh4 {[%emt 0:00:50]} g5 {[%emt 0:00:05] D35: Queen's Gambit Declined: Exchange Variation.} 8. Bg3 {[%emt 0:00:06]} Ne4 {[%emt 0:01:55]} 9. a3 $5 {[%emt 0:00:56][%mdl 4] An interesting side line.} Bxc3+ {[%emt 0:23:59] White has an edge.} 10. bxc3 {[%emt 0:01:00]} h5 {[%emt 0:01:06]} 11. f3 {[%emt 0:03:08]} Nxg3 {[%emt 0:00:14]} (11... Nxc3 $2 12. Qc2 $18) 12. hxg3 {[%emt 0:00:04]} Qd6 {[%emt 0:06:24]} 13. g4 {[%emt 0:03:47]} h4 {[%emt 0:05:55]} 14. Bd3 {[%emt 0:03:15] [#]} Be6 $146 {[%emt 0:17:41]} ({Predecessor:} 14... Nc6 15. Nh3 Qg3+ 16. Kf1 Rg8 17. Qb3 Qd6 18. c4 dxc4 19. Bxc4 Qe7 20. Nf2 Kf8 {1-0 (51) Yu,Y (2709)-Dubov,D (2699) chess24.com INT 2020}) 15. Nh3 {[%emt 0:02:38]} f6 {[%emt 0:00:51]} 16. O-O {[%emt 0:10:24]} Nd7 {[%emt 0:08:24]} 17. Bg6+ {[%emt 0:02:01]} Kf8 {[%emt 0:03:16]} 18. f4 {[%emt 0:08:01][%cal Bf3f4,Bf4f5,Bf5e6][%mdl 32]} Kg7 {[%emt 0:01:40]} (18... Rg8 $142) 19. e4 {[%emt 0:09:15]} Kxg6 $14 {[%emt 0:02:22]} 20. e5 {[%emt 0:01:36]} fxe5 {[%emt 0:04:58]} 21. f5+ {[%emt 0:01:29]} Kh6 {[%emt 0:01:23] [#] Hoping for ...Bf7.} 22. Qd2 {[%emt 0:06:00] Chess con chili.} Bf7 $2 {[%emt 0:04:44][%mdl 8192] Black cannot hold the game after this.} (22... Rhg8 $16 23. fxe6 Qxe6) 23. Nxg5 $18 {[%emt 0:02:11] White is clearly winning.} Kg7 {[%emt 0:00:34]} 24. Ne6+ $1 {[%emt 0:00:47]} Bxe6 {[%emt 0:02:04]} 25. Qg5+ {[%emt 0:00:35]} Kf8 {[%emt 0:00:57]} 26. fxe6+ {[%emt 0:00:46][%mdl 64] [#] Discovered Attack} Ke8 {[%emt 0:00:05]} 27. Qg7 {[%emt 0:02:24] Weighted Error Value: White=0.08 (flawless) /Black=0.12 (very precise)} 1-0

[Event "55th Biel Festival MTO 2022"]
[Site "Biel"]
[Date "2022.07.19"]
[Round "6.6"]
[White "Yu Yangyi"]
[Black "Iniyan P"]
[Result "0-1"]
[ECO "C65"]
[WhiteElo "2720"]
[BlackElo "2533"]
[Annotator "TA"]
[PlyCount "75"]
[EventDate "2022.07.13"]
[EventType "swiss"]
[EventCountry "SUI"]
[SourceTitle "playchess.com"]
[Source "ChessBase"]
[SourceQuality "1"]
[TimeControl "40/5400+30:1800+30"]

{[%evp 12,75,10,5,8,7,16,20,33,2,27,0,8,10,8,14,47,30,18,0,0,0,0,0,0,0,6,0,13,15,12,0,16,0,10,25,19,17,14,16,22,17,35,0,178,176,174,65,79,78,86,-441,-448,-483,-483,-468,-461,-452,-442,-495,-428,-458,-447,-533,-343,-500]} 1. e4 {[%emt 0:00:03]} e5 {[%emt 0:07:38]} 2. Nf3 {[%emt 0:00:09]} Nc6 {[%emt 0:00:00]} 3. Bb5 {[%emt 0:00:30]} Nf6 {[%emt 0:00:27]} 4. d3 {[%emt 0:00:30]} Bc5 {[%emt 0:00:30]} 5. c3 {[%emt 0:00:00]} d6 {[%emt 0:03:14]} 6. O-O {[%emt 0:00:22]} O-O {[%emt 0:00:30]} 7. Nbd2 {[%emt 0:03:17]} a6 {[%emt 0:03:42] 7...Ne7 is the modern continuation. C65: Ruy Lopez: Berlin Defence (3...Nf6), unusual lines and 4 0-0 Bc5.} 8. Ba4 {[%emt 0:00:31]} Ba7 {[%emt 0:00:30]} 9. h3 {[%emt 0:13:18]} Nh5 {[%emt 0:26:21] [#] The position is equal.} 10. d4 $146 {[%emt 0:32:09]} (10. Bxc6 {looks sharper.} bxc6 11. Nxe5 Nf4 12. Nxc6 Qg5 13. Qf3) ({Predecessor:} 10. Re1 f5 11. exf5 Bxf5 12. g4 Bxd3 13. gxh5 d5 14. Bxc6 bxc6 15. Rxe5 Qf6 16. Qe1 {0-1 (33) Onischuk,V (2620)-Kryvoruchko,Y (2685) Kharkov 2021}) 10... b5 {[%emt 0:00:30]} 11. Bc2 {[%emt 0:00:30][%cal Of3e5]} (11. Bb3 {with more complications.} Nf4 12. Nb1 Qf6 13. Bxf4 Qxf4 14. Bd5) 11... exd4 {[%emt 0:00:30]} 12. Nxd4 {[%emt 0:00:30]} Bxd4 {[%emt 0:00:30]} 13. Qxh5 {[%emt 0:00:30]} Be5 {[%emt 0:00:30]} 14. Qe2 {[%emt 0:00:30] Black must now prevent f4.} (14. f4 $5 {[%cal Rf4e5]} g6 15. Qf3 $14) 14... b4 {[%emt 0:00:30]} 15. Qc4 {[%emt 0:00:30]} bxc3 {[%emt 0:00:30]} 16. bxc3 {[%emt 0:00:30]} (16. Qxc6 cxb2 17. Bxb2 Bd7 $17) 16... Bd7 {[%emt 0:00:30]} 17. a4 {[%emt 0:00:30]} Qf6 {[%emt 0:00:30]} 18. Nf3 {[%emt 0:03:00]} Qg6 {[%emt 0:00:30][%cal Od7h3]} (18... Bxc3 19. Bg5 Bxa1 20. Bxf6 Bxf6 21. Rd1 $14) 19. Kh1 {[%emt 0:12:35]} Qh5 {[%emt 0:19:50][%cal Od7h3] Hoping for ...Bxh3!} 20. Ng1 {[%emt 0:00:30]} g5 {[%emt 0:00:30]} 21. Bd1 {[%emt 0:00:30]} Qg6 {[%emt 0:00:30]} 22. Bg4 {[%emt 0:00:30]} Na5 {[%emt 0:00:30]} 23. Qxc7 {[%emt 0:00:30]} Bxg4 {[%emt 0:00:30]} 24. Qxa5 {[%emt 0:00:30]} Rfc8 {[%emt 0:00:30]} 25. Bd2 {[%emt 0:00:30]} (25. hxg4 Bxc3 26. Qd5 Bxa1 27. Bxg5 Be5 $17) 25... Be6 {[%emt 0:04:36] A strong pair of Bishops.} (25... Qxe4 $2 26. hxg4 Qxg4 27. Nf3 $18) 26. Nf3 {[%emt 0:10:59][%csl LRe5,LRg5]} Rc5 {[%emt 0:04:46]} 27. Qb6 {[%emt 0:00:30]} g4 $2 {[%emt 0:04:49]} ({Resist} 27... Qxe4 28. Nxg5 Qf5 29. Nxe6 Qxe6 30. Rfd1 $16) (27... Bxh3 $1 $11 {and Black is okay.} 28. Rae1 (28. gxh3 $2 Qxe4 29. Rg1 Qxf3+ 30. Rg2 Qxh3+ 31. Kg1 h6 $19) (28. Bxg5 $2 Rxc3 29. Qb7 Re8 $19) (28. Qb7 Qh5 $11) 28... Bd7) 28. Nxe5 $18 {[%emt 0:00:43]} Rxe5 {[%emt 0:00:10] [#]} 29. hxg4 {[%emt 0:01:23]} (29. f3 $1 $18) 29... Rxe4 {[%emt 0:03:28]} 30. f3 {[%emt 0:04:19]} Re2 {[%emt 0:00:00]} 31. Rf2 $2 {[%emt 0:01:37][%mdl 8192] [#] This costs White the game.} (31. Be3 $16 {stays on course.}) 31... Rxd2 $1 $19 {[%emt 0:00:12][%mdl 512]} 32. Kg1 {[%emt 0:00:30]} (32. Rxd2 Qh6+) 32... Rxf2 {[%emt 0:00:30]} 33. Qxf2 {[%emt 0:00:30]} Qd3 {[%emt 0:00:30]} 34. Qe1 {[%emt 0:00:04]} Rc8 {[%emt 0:03:24]} 35. Rc1 {[%emt 0:00:12]} Rc5 {[%emt 0:00:30]} 36. Kh2 {[%emt 0:00:30]} h5 {[%emt 0:00:30]} 37. gxh5 {[%emt 0:04:18]} d5 {[%emt 0:00:00] aiming for ...d4.} 38. Kg3 {[%emt 0:00:07] Weighted Error Value: White=0.46/Black=0.23 (precise)} (38. Qe5 {might work better.}) 0-1

[Event "55th Biel Festival MTO 2022"]
[Site "Biel"]
[Date "2022.07.19"]
[Round "6.7"]
[White "Petrov Martin"]
[Black "Lagarde Maxime"]
[Result "1/2-1/2"]
[ECO "B85"]
[WhiteElo "2534"]
[BlackElo "2631"]
[Annotator "TA"]
[PlyCount "131"]
[EventDate "2022.07.13"]
[EventType "swiss"]
[EventCountry "SUI"]
[SourceTitle "playchess.com"]
[Source "ChessBase"]
[SourceQuality "1"]
[TimeControl "40/5400+30:1800+30"]

{[%evp 25,131,16,28,11,9,10,19,18,88,103,97,107,97,91,90,88,89,87,90,100,116,91,97,65,105,101,93,105,75,95,96,98,100,93,155,100,100,97,87,17,28,28,28,8,8,10,9,0,0,0,0,0,0,0,0,0,0,0,0,0,0,0,0,0,0,0,0,0,0,-8,0,0,0,0,0,0,0,0,0,-8,-8,-40,-8,-40,-40,-40,-8,-8,-8,-29965,-29965,-29974,-29975,-29977,-29978,-29978,-8,-8,-8,-8,-8,-8,-8,-8,-8,-8,-8,-8]} 1. e4 {[%emt 0:15:31]} c5 {[%emt 0:03:40]} 2. Nf3 {[%emt 0:00:30]} e6 {[%emt 0:00:30]} 3. d4 {[%emt 0:00:30]} cxd4 {[%emt 0:00:30]} 4. Nxd4 {[%emt 0:00:30]} Nc6 {[%emt 0:00:30]} 5. Nc3 {[%emt 0:21:42]} Qc7 {[%emt 0:16:21]} 6. Be2 {[%emt 0:00:30]} a6 {[%emt 0:00:30]} 7. O-O {[%emt 0:00:30]} Nf6 {[%emt 0:00:30]} 8. Be3 {[%emt 0:00:30]} Be7 {[%emt 0:00:30]} 9. f4 {[%emt 0:00:30]} d6 {[%emt 0:00:30]} 10. a4 {[%emt 0:00:30]} O-O {[%emt 0:00:30]} 11. Kh1 {[%emt 0:00:30]} Bd7 {[%emt 0:00:30]} 12. Nb3 {[%emt 0:00:30]} b6 {[%emt 0:00:30]} 13. Bf3 {[%emt 0:00:30]} Bc8 $1 {[%emt 0:00:30][%mdl 4] is currently scoring better than 13...Rab8.} 14. a5 {[%emt 0:00:30] B85: Sicilian Scheveningen: 6 Be2 a6, lines with early Be3.} bxa5 {[%emt 0:00:30]} 15. e5 {[%emt 0:00:31]} dxe5 {[%emt 0:00:28]} 16. fxe5 {[%emt 0:00:06]} Nd7 {[%emt 0:00:06]} (16... Rd8 $1 $11 17. Nd4 Nxd4 18. exf6 (18. Bxa8 Qxe5 19. Bf4 Qc5 $11) (18. Bxd4 Rb8 $15) 18... Nxf3 19. Qxf3 Bb7 20. fxe7 Bxf3 21. exd8=Q+ (21. exd8=R+ Rxd8 22. Rxf3 Rb8 $11) 21... Rxd8 22. Rxf3 Rb8) 17. Bxc6 $16 {[%emt 0:00:55][%mdl 64] Deflection} Qxc6 {[%emt 0:00:13]} 18. Nxa5 {[%emt 0:00:08][%cal Bb3a5,Ba5c6,Bc6e5][%mdl 32]} Qc7 {[%emt 0:00:23]} 19. Qf3 {[%emt 0:00:55]} Rb8 {[%emt 0:04:45]} 20. Nc6 {[%emt 0:00:33] [#] White is much more active.} Nxe5 $146 {[%emt 0:16:38]} ({Predecessor:} 20... Bc5 21. Nxb8 Qxb8 22. Bxc5 Nxc5 23. Qe3 Nd7 24. Rae1 Qxb2 25. Qd2 Qb8 26. Qg5 h6 {1-0 (45) Arzumanian,G (2437)-Muhtarov,L (2160) Alushta 2001}) 21. Nxe5 {[%emt 0:00:54]} Rxb2 {[%emt 0:00:20]} (21... Qxe5 $2 22. Bf4 Qf5 23. Bxb8 $18) 22. Bd4 {[%emt 0:08:59][%cal Re5f7]} Bb7 {[%emt 0:02:29]} 23. Qf2 {[%emt 0:08:12] Hoping for Nd3.} (23. Ne4 Rxc2 24. Rab1 (24. Nxf7 Bxe4 25. Nh6+ gxh6 $11) 24... f6 25. Rxb7 Qxb7 26. Nxf6+ Rxf6 $14) 23... Rb4 {[%emt 0:03:57]} 24. Rae1 {[%emt 0:07:53][%cal Re5f7]} (24. Nxf7 Bd6 25. Be5 (25. Na2 $2 Rb5 $19) 25... Rxf7 26. Qxf7+ Qxf7 27. Rxf7 (27. Bxd6 Bxg2+ 28. Kxg2 Rg4+ 29. Bg3 Qg6 $17) 27... Bxe5 $11) 24... f6 {[%emt 0:06:36]} 25. Nd3 {[%emt 0:00:55][%csl LRb4,LRe6]} e5 {[%emt 0:02:07]} 26. Nxb4 {[%emt 0:02:11]} Bxb4 {[%emt 0:00:04] A strong pair of Bishops.} 27. Qg3 {[%emt 0:11:06] And now Rb1 would win.} Qc6 {[%emt 0:15:24] [#]} 28. Bxe5 {[%emt 0:02:31]} fxe5 {[%emt 0:00:48]} 29. Rxf8+ {[%emt 0:00:04]} Kxf8 {[%emt 0:04:48]} ({Black should play} 29... Bxf8 30. Re2 (30. Rxe5 Bd6 $11) 30... Qf6) 30. Rf1+ {[%emt 0:06:09]} (30. Qf2+ $142 $1 Qf6 31. Qxf6+ gxf6 32. Rb1) 30... Kg8 {[%emt 0:00:28] [#]} 31. Nd1 {[%emt 0:00:23]} Qxc2 {[%emt 0:03:08]} 32. Qg4 {[%emt 0:01:49] Prevents Qe2.} (32. Ne3 $16 Qe2 33. Rg1) 32... h6 {[%emt 0:09:40]} 33. Ne3 {[%emt 0:02:18][%mdl 1024] White has compensation. Dancing on a razor blade.} Qe4 {[%emt 0:00:05]} 34. Qg3 {[%emt 0:04:57]} (34. Qd7 Bc5 35. Qf5 Qxf5 36. Nxf5 Bf8 $11) 34... Bc8 {[%emt 0:00:42] Prevents Nf5.} 35. h3 {[%emt 0:00:20]} ({Don't play} 35. Qf2 Be6 $15) 35... a5 {[%emt 0:05:56]} 36. Rd1 {[%emt 0:00:45] Threatens to win with Rd8+.} ({Reject} 36. Qf2 Bxh3 37. Nc2 Bd6 $17) 36... Be6 {[%emt 0:01:08]} 37. Ng4 {[%emt 0:01:09]} Qf4 {[%emt 0:01:12] Against Nf6+} 38. Qd3 {[%emt 0:02:02]} Bxg4 {[%emt 0:00:44]} 39. hxg4 {[%emt 0:00:07]} Qxg4 $11 {[%emt 0:00:22][%mdl 4096] Endgame aiming for ...Qh5+. KQR-KQB} 40. Qd5+ {[%emt 0:00:45]} Kh7 {[%emt 0:00:30]} 41. Rd3 {[%emt 0:03:32] Prevents Bc3.} Qh4+ {[%emt 0:04:42]} 42. Rh3 {[%emt 0:00:44]} Qe1+ {[%emt 0:02:19]} 43. Kh2 {[%emt 0:00:02]} Bd2 {[%emt 0:00:42]} 44. Qf3 {[%emt 0:08:41]} Bf4+ {[%emt 0:00:43]} 45. g3 {[%emt 0:00:08]} Qd2+ {[%emt 0:00:08]} 46. Kh1 {[%emt 0:00:06]} Qc1+ {[%emt 0:00:11]} 47. Kg2 {[%emt 0:00:14] Black must now prevent Qd3+.} Qb2+ {[%emt 0:02:11]} 48. Qf2 {[%emt 0:05:40]} Bc1 {[%emt 0:03:03]} 49. Rh4 $1 {[%emt 0:00:19]} Qxf2+ {[%emt 0:04:25]} 50. Kxf2 {[%emt 0:00:02] KR-KB} Kg6 {[%emt 0:00:41]} 51. Rc4 {[%emt 0:02:49]} Bb2 {[%emt 0:02:24]} 52. Ke3 {[%emt 0:03:36]} h5 {[%emt 0:01:53][%cal Bh6h5,Bh5h4][%mdl 32]} 53. Kd3 {[%emt 0:01:02]} Bd4 {[%emt 0:08:53] ...Kf5 is the strong threat.} (53... Kf5 $5 {[%cal Rb2d4]} 54. Ke3 (54. Ra4 $2 Bd4 $17) 54... Bd4+ 55. Kf3 g5 $17) 54. Ra4 {[%emt 0:03:13]} Kf5 {[%emt 0:00:14]} 55. Rxa5 {[%emt 0:00:12]} Kg4 {[%emt 0:00:33]} (55... Bf2 $5 {[%cal Rf2g3]} 56. g4+ Kxg4 57. Rxe5 Bg3 58. Re4+ Bf4 $17) 56. Ke4 $1 {[%emt 0:03:22]} Kxg3 {[%emt 0:00:48]} 57. Kf5 $2 {[%emt 0:00:30][%mdl 8192]} (57. Ra3+ $11 Kg4 58. Ra2) 57... h4 {[%emt 0:00:14]} 58. Ra6 {[%emt 0:03:46] [#]} Kf3 $1 {[%emt 0:03:22]} ({And not} 58... h3 59. Rg6+ Kf3 60. Rxg7 $11) 59. Rg6 {[%emt 0:01:10]} e4 {[%emt 0:01:13]} 60. Rg4 {[%emt 0:00:17]} Bf2 $2 {[%emt 0:01:56]} (60... g6+ {mates} 61. Rxg6 Bf2 62. Rf6 e3 63. Kg5+ Kg2 64. Re6 h3 65. Kf5 h2 66. Rg6+ Bg3 67. Re6 h1=Q 68. Kg6 Qd1 69. Rb6 e2 70. Rb2 Qd6+ 71. Kh7 Qe7+ 72. Kg6 Qe6+ 73. Kg7 Be5+ 74. Kf8 Qf6+ 75. Ke8 Bxb2 76. Kd7 e1=Q 77. Kc7 Qee7+ 78. Kc8 Qh8#) 61. Rf4+ {[%emt 0:00:07] The position is equal.} Kg2 {[%emt 0:00:06] ( -> ...e3)} 62. Rxe4 {[%emt 0:00:54]} g5 {[%emt 0:00:51]} (62... h3 $5 63. Rg4+ Kf3 64. Rxg7 h2 $11) 63. Rg4+ {[%emt 0:00:34]} Bg3 {[%emt 0:00:20]} 64. Rxg5 {[%emt 0:00:08]} h3 {[%emt 0:00:02]} 65. Rh5 {[%emt 0:00:06]} h2 {[%emt 0:00:04]} 66. Rxh2+ {[%emt 0:00:02] Weighted Error Value: White=0.26 (precise) /Black=0.19 (very precise)} 1/2-1/2